bitfinex/quotes_BTCUSD_20240905
["timestamp","ask_amount","ask_price","bid_price","bid_amount"]
[1725559267674,0.1527,56762.0,56759.0,0.352361]
[1725559267910,0.1527,56762.0,56761.0,0.176177]
[1725559268144,0.1527,56762.0,56755.0,0.35239]
[1725559268394,0.176199,56754.0,56750.0,0.001632]
[1725559268609,0.1527,56762.0,56750.0,0.354051]
[1725559268610,0.023,56753.0,56750.0,0.354051]
[1725559268830,0.41894933,56756.0,56750.0,0.354051]
[1725559269044,0.199197,56755.0,56752.0,0.176203]
[1725559269321,0.199197,56755.0,56750.0,0.354051]
[1725559269322,1.12579633,56751.0,56750.0,0.001632]
[1725559269521,1.77541233,56751.0,56750.0,0.001632]
[1725559269726,1.79841233,56751.0,56750.0,0.004632]
[1725559269933,1.79841233,56751.0,56750.0,0.005632]
[1725559270196,2.15082833,56751.0,56750.0,0.005632]
[1725559270396,2.15082833,56751.0,56750.0,0.001632]
[1725559270607,0.176276,56729.0,56728.0,0.4672]
[1725559270831,0.32285633,56729.0,56723.0,0.352585]
[1725559271067,0.32285633,56729.0,56722.0,0.352592]
[1725559271068,0.24275633,56725.0,56722.0,0.352592]
[1725559271296,0.24275633,56725.0,56724.0,0.176292]
[1725559271557,0.24275633,56725.0,56720.0,0.58911187]
[1725559271793,0.0801,56729.0,56720.0,0.58911187]
[1725559271794,0.24275633,56721.0,56720.0,0.58911187]
[1725559271999,0.0801,56729.0,56720.0,0.94172087]
[1725559272198,0.023,56728.0,56724.0,0.17629]
[1725559272421,0.001,56725.0,56724.0,0.012]
[1725559272625,0.001,56725.0,56724.0,0.540874]
[1725559272833,0.023,56728.0,56725.0,0.352576]
[1725559273041,0.352503,56738.0,56720.0,0.60011187]
[1725559273042,0.36975633,56734.0,56720.0,0.60011187]
[1725559273248,0.023,56733.0,56721.0,0.33461096]
[1725559273453,0.023,56733.0,56727.0,0.352565]
[1725559273662,0.11505848,56734.0,56729.0,0.352551]
[1725559273886,0.24275633,56733.0,56729.0,0.176275]
[1725559274348,0.41902033,56733.0,56729.0,0.176275]
[1725559274781,0.24275633,56733.0,56728.0,0.352558]
[1725559275005,0.24275633,56737.0,56733.0,0.176263]
[1725559275226,0.24275633,56737.0,56734.0,0.17626]
[1725559275474,0.004,56734.0,56733.0,0.528789]
[1725559275706,0.004,56734.0,56733.0,0.881317]
[1725559275932,0.004,56734.0,56733.0,0.176264]
[1725559276156,0.004,56734.0,56733.0,0.88132]
[1725559276387,0.24275633,56737.0,56735.0,0.176256]
[1725559276604,0.24275633,56737.0,56733.0,0.176263]
[1725559276815,0.24275633,56737.0,56731.0,0.352538]
[1725559276816,0.24475633,56737.0,56732.0,0.35253]
[1725559277084,0.24475633,56737.0,56734.0,0.176259]
[1725559277281,0.24475633,56737.0,56732.0,0.35253]
[1725559277709,0.42100833,56737.0,56734.0,0.176259]
[1725559278361,0.176255,56736.0,56733.0,0.176263]
[1725559278797,0.176259,56735.0,56731.0,0.176268]
[1725559278996,0.24275633,56733.0,56731.0,0.176268]
[1725559279263,0.24275633,56733.0,56732.0,0.176267]
[1725559279478,0.24275633,56733.0,56721.0,0.2788]
[1725559279696,0.24275633,56722.0,56721.0,0.528904]
[1725559279903,0.24275633,56734.0,56731.0,0.35254]
[1725559280112,0.24275633,56734.0,56731.0,0.17627]
[1725559280325,0.24275633,56734.0,56732.0,0.176266]
[1725559280531,0.24275633,56734.0,56733.0,0.176264]
[1725559280742,0.1306,56736.0,56735.0,0.176258]
[1725559281205,0.36535633,56742.0,56741.0,0.176239]
[1725559281438,0.24275633,56746.0,56732.0,0.00352493]
[1725559281642,0.24275633,56746.0,56745.0,0.176226]
[1725559281872,0.129,56748.0,56733.0,0.17551096]
[1725559282089,0.03,56758.0,56731.0,0.354536]
[1725559282090,0.36965633,56758.0,56739.0,0.1615]
[1725559282324,0.36965633,56758.0,56740.0,0.1790353]
[1725559282560,0.176194,56756.0,56740.0,0.1790353]
[1725559282799,0.36965633,56758.0,56740.0,0.1790353]
[1725559283016,0.176189,56757.0,56740.0,0.1790353]
[1725559283255,0.000816,56761.0,56750.0,0.1539]
[1725559283513,0.000816,56761.0,56756.0,0.352379]
[1725559283750,0.000816,56761.0,56758.0,0.352373]
[1725559283983,0.000816,56761.0,56751.0,0.17551096]
[1725559284225,0.000816,56761.0,56760.0,0.8809]
[1725559284448,0.000816,56761.0,56760.0,1.69237096]
[1725559285097,0.000816,56761.0,56760.0,2.04473096]
[1725559285771,0.000816,56761.0,56760.0,2.04673096]
[1725559285983,0.000816,56761.0,56760.0,2.51109096]
[1725559286197,0.000816,56761.0,56760.0,2.5631552]
[1725559286400,0.000816,56761.0,56760.0,2.51109096]
[1725559286827,0.000816,56761.0,56760.0,2.16073096]
[1725559287059,0.000816,56761.0,56760.0,2.15873096]
[1725559287267,0.000816,56761.0,56760.0,1.82037096]
[1725559287488,0.000816,56761.0,56760.0,1.80637096]
[1725559288123,0.000816,56761.0,56760.0,1.79237096]
[1725559288337,0.000816,56761.0,56760.0,1.80637096]
[1725559288551,0.000816,56761.0,56760.0,0.9089]
[1725559288791,0.000816,56761.0,56760.0,0.8949]
[1725559289210,0.000816,56761.0,56760.0,0.55654]
[1725559289693,0.000816,56761.0,56760.0,0.54254]
[1725559290149,0.000816,56761.0,56760.0,0.55454]
[1725559290373,0.000816,56761.0,56760.0,0.9069]
[1725559290590,0.000816,56761.0,56760.0,0.8929]
[1725559290830,0.000816,56761.0,56760.0,0.9049]
[1725559291296,0.000816,56761.0,56760.0,1.23326]
[1725559291519,0.000816,56761.0,56760.0,1.24326]
[1725559291744,0.000816,56761.0,56760.0,0.9009]
[1725559292178,0.000816,56761.0,56760.0,1.25326]
[1725559292656,0.000816,56761.0,56760.0,1.59057096]
[1725559292854,0.000816,56761.0,56760.0,1.83332729]
[1725559293286,0.000816,56761.0,56760.0,1.59057096]
[1725559293943,0.000816,56761.0,56760.0,1.94293096]
[1725559294176,0.000816,56761.0,56760.0,1.59057096]
[1725559294398,0.000816,56761.0,56760.0,2.16353096]
[1725559298996,0.000816,56761.0,56760.0,2.40628729]
[1725559299226,0.000816,56761.0,56760.0,2.75864729]
[1725559299471,0.000816,56762.0,56760.0,2.75864729]
[1725559299472,1.3024904,56768.0,56767.0,1.82818233]
[1725559299682,1.3024904,56768.0,56767.0,2.73841029]
[1725559300111,1.3024904,56768.0,56767.0,2.74041029]
[1725559300988,1.3024904,56768.0,56767.0,2.76241029]
[1725559301218,1.3024904,56768.0,56767.0,2.76041029]
[1725559301660,1.3024904,56768.0,56767.0,2.77441029]
[1725559302126,1.3024904,56768.0,56767.0,2.16733696]
[1725559302546,1.3024904,56768.0,56767.0,2.06733696]
[1725559304979,1.3024904,56768.0,56767.0,1.71501996]
[1725559305188,1.3024904,56768.0,56767.0,1.43261996]
[1725559305620,1.3024904,56768.0,56767.0,0.200158]
[1725559305881,1.3024904,56768.0,56767.0,0.552475]
[1725559306102,1.3033064,56768.0,56767.0,0.904792]
[1725559308448,1.3033064,56768.0,56767.0,0.552475]
[1725559308665,1.3033064,56768.0,56767.0,0.904792]
[1725559309122,1.3033064,56768.0,56767.0,0.552475]
[1725559310025,1.3063735,56768.0,56767.0,0.552475]
[1725559311538,1.72528483,56768.0,56767.0,0.024]
[1725559311782,2.10059583,56768.0,56767.0,0.024]
[1725559312425,2.45290683,56768.0,56767.0,0.024]
[1725559312657,2.45290683,56768.0,56767.0,0.012]
[1725559312850,0.176169,56764.0,56761.0,0.176177]
[1725559313114,0.41892533,56764.0,56761.0,0.176176]
[1725559313339,0.41892533,56764.0,56752.0,0.352408]
[1725559313340,0.1267,56762.0,56755.0,0.352387]
[1725559313604,0.1267,56762.0,56753.0,0.4672]
[1725559313605,0.176188,56758.0,56753.0,0.819603]
[1725559313823,0.176183,56759.0,56756.0,0.176192]
[1725559314525,0.352368,56759.0,56755.0,0.008]
[1725559314797,0.1267,56762.0,56755.0,0.008]
[1725559314798,0.77133333,56756.0,56755.0,0.008]
[1725559315464,0.24275633,56756.0,56755.0,0.008]
[1725559315686,0.24275633,56756.0,56754.0,0.176198]
[1725559315896,0.24275633,56756.0,56753.0,0.176201]
[1725559316107,0.24275633,56756.0,56754.0,0.176198]
[1725559316314,0.24275633,56756.0,56751.0,0.352412]
[1725559316315,0.41894933,56756.0,56753.0,0.176201]
[1725559316737,0.41894933,56756.0,56753.0,0.187201]
[1725559316950,0.41894933,56756.0,56754.0,0.013]
[1725559317356,0.41894933,56756.0,56754.0,0.014]
[1725559317610,0.41894933,56756.0,56753.0,0.176201]
[1725559317830,0.41894933,56756.0,56753.0,0.189201]
[1725559318056,0.41894933,56756.0,56753.0,0.203201]
[1725559318263,0.16765753,56756.0,56753.0,0.189201]
[1725559318680,0.16765753,56756.0,56754.0,0.014]
[1725559319117,0.352381,56757.0,56754.0,0.014]
[1725559319346,0.176195,56755.0,56754.0,0.015632]
[1725559319556,0.528586,56755.0,56754.0,0.015632]
[1725559319813,0.528586,56755.0,56754.0,0.001632]
[1725559320028,0.880977,56755.0,56754.0,0.014632]
[1725559320679,0.77134233,56755.0,56754.0,0.028632]
[1725559320893,0.77134233,56755.0,56754.0,0.015632]
[1725559321224,1.43283333,56755.0,56754.0,0.001632]
[1725559321423,1.79522433,56755.0,56754.0,0.022632]
[1725559321635,1.79522433,56755.0,56754.0,0.015632]
[1725559321636,1.79722433,56755.0,56754.0,0.015632]
[1725559322546,1.79722433,56755.0,56754.0,0.001632]
[1725559322774,2.14961533,56755.0,56754.0,0.001632]
[1725559323002,0.810374,56735.0,56733.0,0.001632]
[1725559323240,1.40564633,56735.0,56733.0,0.001632]
[1725559323471,1.42864633,56735.0,56733.0,0.001632]
[1725559323967,1.78116233,56735.0,56733.0,0.001632]
[1725559324424,1.78095019,56735.0,56733.0,0.001632]
[1725559324661,1.78295019,56735.0,56733.0,0.001632]
[1725559324928,1.78295019,56735.0,56734.0,0.002632]
[1725559325177,2.14546619,56735.0,56734.0,0.002632]
[1725559325382,0.186289,56725.0,56724.0,0.001632]
[1725559325598,1.80627933,56725.0,56724.0,0.001632]
[1725559326064,1.80827933,56725.0,56724.0,0.001632]
[1725559326274,2.26085733,56725.0,56724.0,0.001632]
[1725559326703,2.63343533,56725.0,56724.0,0.001632]
[1725559326908,2.63343533,56725.0,56719.0,0.001632]
[1725559326909,1.24611,56721.0,56719.0,0.001632]
[1725559327119,1.96446933,56721.0,56719.0,0.001632]
[1725559327382,2.31012842,56721.0,56719.0,0.001632]
[1725559327593,2.28296933,56721.0,56719.0,0.001632]
[1725559328283,2.33012842,56721.0,56719.0,0.001632]
[1725559328756,2.28296933,56721.0,56719.0,0.001632]
[1725559328971,2.33012842,56721.0,56719.0,0.001632]
[1725559329210,2.28296933,56721.0,56719.0,0.001632]
[1725559329456,2.33012842,56721.0,56719.0,0.001632]
[1725559330151,2.3438632,56721.0,56719.0,0.001632]
[1725559330372,2.34793388,56721.0,56720.0,0.59011187]
[1725559330818,2.35793388,56721.0,56720.0,0.59174387]
[1725559331056,2.35693388,56721.0,56720.0,0.59174387]
[1725559331282,0.77687468,56721.0,56720.0,0.59274387]
[1725559331507,0.78787468,56721.0,56720.0,0.59274387]
[1725559331736,0.64397468,56721.0,56720.0,0.59174387]
[1725559331952,0.02607068,56721.0,56720.0,0.59274387]
[1725559332382,0.00407068,56721.0,56720.0,1.28385687]
[1725559332566,0.00407068,56721.0,56720.0,1.28285687]
[1725559332567,0.00307068,56721.0,56720.0,1.28285687]
[1725559333086,0.00407068,56721.0,56720.0,1.28385687]
[1725559333536,0.00307068,56721.0,56720.0,1.28285687]
[1725559333971,0.00307068,56721.0,56720.0,2.28928583]
[1725559334192,0.00307068,56721.0,56720.0,1.76116587]
[1725559334833,0.00307068,56721.0,56720.0,1.40855687]
[1725559335038,0.17937168,56721.0,56720.0,0.59074387]
[1725559335266,0.00307068,56721.0,56720.0,0.59074387]
[1725559335487,0.00307068,56721.0,56720.0,0.76704787]
[1725559335696,0.00307068,56721.0,56720.0,0.59074387]
[1725559335927,0.00307068,56721.0,56720.0,0.76704787]
[1725559336413,0.00307068,56721.0,56720.0,0.76804787]
[1725559336636,0.00307068,56721.0,56720.0,0.76704787]
[1725559337110,0.00307068,56721.0,56720.0,1.64146587]
[1725559337322,0.01844662,56739.0,56735.0,0.176257]
[1725559337547,0.01844662,56739.0,56735.0,0.352512]
[1725559337756,0.01844662,56739.0,56736.0,0.176254]
[1725559337967,0.176252,56737.0,56734.0,0.1539]
[1725559338413,0.176254,56736.0,56734.0,0.1539]
[1725559338885,0.176261,56734.0,56730.0,0.176271]
[1725559339110,0.352504,56737.0,56731.0,0.176269]
[1725559339111,0.176258,56735.0,56731.0,0.176269]
[1725559339530,0.352504,56737.0,56729.0,0.1539]
[1725559339748,0.3036502,56735.0,56729.0,0.1539]
[1725559339972,0.199262,56734.0,56730.0,0.176272]
[1725559340243,0.023,56734.0,56729.0,0.1539]
[1725559340472,0.00306881,56738.0,56729.0,0.1539]
[1725559340473,0.001,56736.0,56729.0,0.1539]
[1725559340722,0.001,56736.0,56732.0,0.176264]
[1725559340902,0.00306881,56738.0,56735.0,0.176258]
[1725559341168,0.00306881,56738.0,56737.0,0.528754]
[1725559341377,0.00306881,56738.0,56737.0,1.042457]
[1725559342484,0.00306881,56738.0,56737.0,1.57047096]
[1725559343172,0.00906881,56738.0,56737.0,1.93297396]
[1725559343392,0.000816,56755.0,56751.0,0.1612]
[1725559343607,0.177012,56755.0,56751.0,0.1612]
[1725559344091,0.0030681,56754.0,56751.0,0.337407]
[1725559344308,0.0030681,56754.0,56746.0,0.352442]
[1725559344531,0.176203,56753.0,56750.0,0.176211]
[1725559344740,0.37541,56752.0,56745.0,0.337426]
[1725559344948,0.176219,56748.0,56745.0,0.1612]
[1725559345154,0.352423,56750.0,56745.0,0.1612]
[1725559345155,0.17622,56747.0,56745.0,0.1612]
[1725559345380,0.352423,56750.0,56745.0,0.1612]
[1725559345381,0.176216,56749.0,56745.0,0.1612]
[1725559345622,0.174218,56748.0,56745.0,0.1612]
[1725559346120,0.17623,56744.0,56739.0,0.513687]
[1725559346357,0.176221,56747.0,56745.0,0.009]
[1725559346579,0.176223,56746.0,56745.0,0.009]
[1725559346782,0.176223,56746.0,56743.0,0.176232]
[1725559346995,0.176225,56746.0,56742.0,0.176235]
[1725559347225,0.176225,56746.0,56745.0,0.007]
[1725559347430,0.176225,56746.0,56745.0,0.014]
[1725559347623,0.176221,56747.0,56745.0,0.007]
[1725559347861,0.8323012,56749.0,56745.0,0.007]
[1725559348091,0.001,56746.0,56745.0,0.545679]
[1725559348524,0.001,56746.0,56745.0,0.538679]
[1725559349167,0.176216,56749.0,56746.0,0.176223]
[1725559349395,0.176212,56750.0,56746.0,0.176221]
[1725559349616,0.001,56749.0,56746.0,0.176223]
[1725559349854,0.352419,56751.0,56746.0,0.176223]
[1725559350071,0.023,56752.0,56746.0,0.176223]
[1725559350072,0.176216,56749.0,56746.0,0.176223]
[1725559350518,0.176216,56749.0,56746.0,0.182223]
[1725559350725,0.176216,56749.0,56746.0,0.187223]
[1725559350934,0.176216,56749.0,56746.0,0.011]
[1725559351145,0.176216,56749.0,56746.0,0.006]
[1725559351351,0.176216,56749.0,56746.0,0.182223]
[1725559351566,0.6560792,56749.0,56744.0,0.176227]
[1725559351812,0.176224,56746.0,56743.0,0.176233]
[1725559352251,0.176224,56746.0,56742.0,0.176235]
[1725559352498,0.3036502,56749.0,56739.0,0.1612]
[1725559352499,0.3036502,56744.0,56739.0,0.1612]
[1725559352707,0.352509,56736.0,56731.0,0.1617]
[1725559352940,0.352517,56735.0,56731.0,0.1617]
[1725559353180,0.3036502,56740.0,56731.0,0.1617]
[1725559353406,0.176267,56732.0,56731.0,0.1617]
[1725559353630,0.023,56739.0,56733.0,0.176262]
[1725559353831,0.176256,56736.0,56731.0,0.1617]
[1725559354074,0.176259,56735.0,56732.0,0.176266]
[1725559354288,0.176253,56737.0,56734.0,0.17626]
[1725559354491,0.176253,56737.0,56733.0,0.176263]
[1725559354919,0.176249,56738.0,56735.0,0.176256]
[1725559355171,0.352448,56746.0,56731.0,0.1647]
[1725559355384,0.2212,56751.0,56741.0,0.176236]
[1725559355645,0.17623,56744.0,56741.0,0.176236]
[1725559355867,0.17623,56744.0,56740.0,0.176242]
[1725559356077,0.176227,56745.0,56741.0,0.176239]
[1725559356301,0.17623,56744.0,56741.0,0.176239]
[1725559356532,0.352451,56746.0,56740.0,0.176242]
[1725559356533,0.176235,56743.0,56740.0,0.176242]
[1725559356747,0.6560912,56748.0,56736.0,0.352508]
[1725559356748,0.176243,56740.0,56737.0,0.17625]
[1725559356959,0.3036502,56748.0,56733.0,0.1581]
[1725559356960,0.176253,56737.0,56733.0,0.334363]
[1725559357168,0.352485,56740.0,56735.0,0.176256]
[1725559357397,0.003,56744.0,56733.0,0.1581]
[1725559357629,0.35546,56744.0,56736.0,0.352507]
[1725559357842,0.35546,56744.0,56740.0,0.176242]
[1725559357843,0.003,56744.0,56740.0,0.176242]
[1725559358055,0.003,56744.0,56741.0,0.176237]
[1725559358274,0.176233,56743.0,56740.0,0.176242]
[1725559358492,0.176234,56743.0,56740.0,0.17624]
[1725559358950,0.01844662,56742.0,56740.0,0.17624]
[1725559359157,0.176247,56739.0,56736.0,0.176254]
[1725559359438,0.24256108,56740.0,56735.0,0.176256]
[1725559359650,0.176252,56737.0,56733.0,0.1581]
[1725559359863,0.59505008,56740.0,56733.0,0.1581]
[1725559359864,0.59505008,56740.0,56733.0,0.510627]
[1725559360279,0.24256108,56736.0,56725.0,0.1577]
[1725559360492,0.176281,56728.0,56725.0,0.1577]
[1725559360724,0.59510408,56731.0,56725.0,0.1577]
[1725559360945,0.352549,56730.0,56725.0,0.333987]
[1725559361178,0.17628,56728.0,56725.0,0.333987]
[1725559361417,0.176277,56729.0,56725.0,0.333986]
[1725559361620,0.176277,56729.0,56726.0,0.176285]
[1725559362266,0.176277,56729.0,56725.0,0.1577]
[1725559362267,0.17628,56728.0,56725.0,0.347988]
[1725559362686,0.176277,56729.0,56725.0,0.344988]
[1725559362893,0.177277,56729.0,56726.0,0.012]
[1725559363335,0.176282,56727.0,56726.0,0.012]
[1725559363592,0.528847,56727.0,56726.0,0.012]
[1725559364268,0.881412,56727.0,56726.0,0.012]
[1725559364486,0.528847,56727.0,56726.0,0.012]
[1725559364692,0.00306951,56728.0,56725.0,0.012]
[1725559364896,0.17934951,56728.0,56725.0,0.024]
[1725559365334,0.176283,56727.0,56724.0,0.176289]
[1725559365544,0.001,56727.0,56726.0,0.025]
[1725559365799,0.177283,56727.0,56726.0,0.025]
[1725559366007,0.529848,56727.0,56726.0,0.014]
[1725559366237,0.177283,56727.0,56726.0,0.014]
[1725559366447,0.176283,56727.0,56725.0,0.012]
[1725559366651,0.176283,56727.0,56725.0,0.025]
[1725559366871,0.35663151,56728.0,56725.0,0.013]
[1725559366872,0.176286,56726.0,56725.0,0.013]
[1725559367121,0.551858,56726.0,56725.0,0.013]
[1725559367980,0.176292,56724.0,56721.0,0.1763]
[1725559368205,0.176292,56724.0,56720.0,1.11965487]
[1725559368432,0.176301,56721.0,56720.0,0.59074387]
[1725559368907,0.353567,56727.0,56720.0,0.59074387]
[1725559369140,0.023,56726.0,56723.0,0.176292]
[1725559369375,0.001,56727.0,56720.0,0.59074387]
[1725559369595,0.001,56726.0,56720.0,0.59974387]
[1725559369824,0.881507,56721.0,56720.0,0.59974387]
[1725559370086,0.528904,56721.0,56720.0,0.59074387]
[1725559370326,0.904507,56721.0,56720.0,0.59074387]
[1725559371237,1.25711,56721.0,56720.0,0.59674387]
[1725559371465,1.25711,56721.0,56720.0,0.59074387]
[1725559371915,1.25911,56721.0,56720.0,0.59074387]
[1725559372371,1.40981,56721.0,56720.0,0.58574387]
[1725559372595,1.41181,56721.0,56720.0,0.58574387]
[1725559372817,1.40981,56721.0,56720.0,0.58574387]
[1725559373027,0.906507,56721.0,56720.0,0.58574387]
[1725559373457,0.553904,56721.0,56720.0,0.58574387]
[1725559373672,0.555904,56721.0,56720.0,0.58574387]
[1725559374140,0.027,56721.0,56720.0,0.58574387]
[1725559374373,0.004,56721.0,56720.0,0.58574387]
[1725559375048,0.180301,56721.0,56720.0,0.58574387]
[1725559375482,0.00706976,56721.0,56720.0,0.76204787]
[1725559375702,0.00706976,56721.0,56720.0,1.46726587]
[1725559375926,0.00706976,56721.0,56720.0,1.62306587]
[1725559377021,0.00506976,56721.0,56720.0,1.62306587]
[1725559377468,0.00306976,56721.0,56720.0,1.62306587]
[1725559377706,0.00306976,56721.0,56720.0,1.62706587]
[1725559378263,0.00306976,56721.0,56720.0,1.63106587]
[1725559379888,0.176286,56726.0,56720.0,1.63106587]
[1725559380097,0.176287,56726.0,56722.0,0.176296]
[1725559380275,0.176287,56726.0,56720.0,1.10215287]
[1725559380276,0.53197372,56721.0,56720.0,0.59374387]
[1725559380924,0.53197372,56721.0,56720.0,0.58974387]
[1725559381135,0.88457672,56721.0,56720.0,0.58974387]
[1725559381359,0.00306972,56721.0,56720.0,0.76204787]
[1725559381564,0.00306972,56721.0,56720.0,2.09937487]
[1725559382234,0.00306972,56721.0,56720.0,2.62749483]
[1725559382439,0.00306972,56721.0,56720.0,2.63149483]
[1725559382665,0.00306972,56721.0,56720.0,2.63549483]
[1725559382890,0.002,56726.0,56725.0,0.881445]
[1725559383745,0.00306914,56727.0,56726.0,0.88143]
[1725559384161,0.00306914,56727.0,56726.0,1.03383]
[1725559384623,0.00306914,56727.0,56726.0,1.386402]
[1725559384863,0.00306914,56727.0,56726.0,1.68611296]
[1725559385524,0.00406914,56727.0,56726.0,1.69811296]
[1725559386877,0.00406914,56727.0,56726.0,1.70911296]
[1725559387741,0.00406914,56727.0,56726.0,1.18103]
[1725559387949,0.00406914,56727.0,56726.0,0.023]
[1725559388844,0.53291614,56727.0,56726.0,0.023]
[1725559389072,0.55591614,56727.0,56726.0,0.023]
[1725559389276,0.90848114,56727.0,56726.0,0.023]
[1725559389714,0.55591614,56727.0,56726.0,0.023]
[1725559391254,0.18035114,56727.0,56726.0,0.023]
[1725559392379,0.00406914,56727.0,56726.0,0.199286]
[1725559393023,0.00406914,56727.0,56726.0,0.716058]
[1725559393232,0.00406914,56727.0,56726.0,0.199286]
[1725559393446,0.18035114,56727.0,56726.0,0.023]
[1725559393648,0.83633376,56727.0,56726.0,0.023]
[1725559394277,0.85933376,56727.0,56726.0,0.023]
[1725559395581,1.21189876,56727.0,56726.0,0.023]
[1725559397328,0.00406914,56727.0,56726.0,0.023]
[1725559397545,0.00406914,56727.0,56726.0,0.707658]
[1725559398213,0.02251576,56727.0,56726.0,0.707658]
[1725559398628,0.02251576,56727.0,56726.0,0.1788]
[1725559398834,0.02251576,56727.0,56726.0,0.355086]
[1725559399050,0.19879776,56727.0,56726.0,0.023]
[1725559399265,0.55136276,56727.0,56726.0,0.023]
[1725559399919,0.92692776,56727.0,56726.0,0.023]
[1725559401945,1.27949276,56727.0,56726.0,0.023]
[1725559402150,0.92692776,56727.0,56726.0,0.023]
[1725559402389,0.57436276,56727.0,56726.0,0.023]
[1725559403046,0.02251576,56727.0,56726.0,1.18723]
[1725559403497,0.02251576,56727.0,56726.0,1.539802]
[1725559403949,0.02251576,56727.0,56726.0,2.06788496]
[1725559404179,0.001,56727.0,56726.0,2.06788496]
[1725559405300,0.001,56727.0,56726.0,2.05688496]
[1725559405510,0.001,56727.0,56726.0,2.07088496]
[1725559405949,0.000816,56728.0,56727.0,1.387877]
[1725559406134,0.000816,56728.0,56727.0,1.56338796]
[1725559407729,0.000816,56728.0,56727.0,1.70798796]
[1725559407950,0.000816,56728.0,56727.0,1.72198796]
[1725559408156,0.000816,56728.0,56727.0,2.07455296]
[1725559408591,0.000816,56728.0,56727.0,1.72198796]
[1725559409025,0.000816,56728.0,56727.0,0.841347]
[1725559409229,0.000816,56728.0,56727.0,0.358182]
[1725559409450,0.000816,56728.0,56727.0,0.710747]
[1725559409943,0.000816,56728.0,56727.0,0.028]
[1725559410167,0.177095,56728.0,56727.0,0.028]
[1725559410376,0.000816,56728.0,56727.0,0.028]
[1725559410581,0.177095,56728.0,56727.0,0.028]
[1725559410812,1.027613,56728.0,56727.0,0.028]
[1725559411236,0.905213,56728.0,56727.0,0.028]
[1725559411462,0.905213,56728.0,56727.0,0.014]
[1725559411888,0.176294,56724.0,56720.0,0.76204687]
[1725559412740,0.352578,56725.0,56720.0,0.76204687]
[1725559412955,0.176294,56724.0,56720.0,0.76204687]
[1725559413385,0.176294,56724.0,56720.0,0.58574387]
[1725559413849,0.176301,56721.0,56720.0,0.58574387]
[1725559414065,0.24273087,56721.0,56720.0,0.58574387]
[1725559414286,0.41903187,56721.0,56720.0,0.59474387]
[1725559414500,0.77163487,56721.0,56720.0,0.60374387]
[1725559414707,1.14723787,56721.0,56720.0,0.60374387]
[1725559414914,0.79463487,56721.0,56720.0,0.58574387]
[1725559415152,1.14723787,56721.0,56720.0,0.59774387]
[1725559415385,1.14723787,56721.0,56720.0,0.60974387]
[1725559417975,1.49984087,56721.0,56720.0,0.60974387]
[1725559419470,1.50184087,56721.0,56720.0,0.60974387]
[1725559419703,1.86476231,56721.0,56720.0,0.59774387]
[1725559419932,2.29523586,56721.0,56720.0,0.59774387]
[1725559420146,2.66783886,56721.0,56720.0,0.59874387]
[1725559420594,2.66783886,56721.0,56720.0,0.58574387]
[1725559420819,2.67183886,56721.0,56720.0,0.58574387]
[1725559421455,2.67183886,56721.0,56720.0,0.58674387]
[1725559421456,2.67583886,56721.0,56720.0,0.58674387]
[1725559421675,2.63696531,56721.0,56720.0,0.58674387]
[1725559421912,2.63696531,56721.0,56712.0,0.001632]
[1725559421913,0.74105687,56713.0,56712.0,0.001632]
[1725559422130,1.54636087,56713.0,56712.0,0.001632]
[1725559422371,2.25166487,56713.0,56712.0,0.001632]
[1725559422576,2.27466487,56713.0,56712.0,0.001632]
[1725559423753,2.62731687,56713.0,56712.0,0.001632]
[1725559423972,2.63731687,56713.0,56712.0,0.002632]
[1725559424188,2.68925197,56713.0,56712.0,0.003632]
[1725559424594,2.69825197,56713.0,56712.0,0.003632]
[1725559424816,2.67725197,56713.0,56712.0,0.001632]
[1725559425016,2.69225197,56713.0,56712.0,0.003632]
[1725559425216,2.87840972,56713.0,56712.0,0.003632]
[1725559425449,3.34563072,56713.0,56712.0,0.003632]
[1725559425650,3.01774046,56713.0,56712.0,0.003632]
[1725559425876,2.85112936,56713.0,56712.0,0.003632]
[1725559426848,2.65291436,56713.0,56712.0,0.003632]
[1725559427428,2.65598395,56713.0,56712.0,0.003632]
[1725559427637,3.45243603,56713.0,56712.0,0.003632]
[1725559427844,3.49930154,56713.0,56712.0,0.003632]
[1725559428041,3.14706036,56713.0,56712.0,0.003632]
[1725559428308,3.96792546,56713.0,56712.0,0.003632]
[1725559428488,1.969795,56707.0,56706.0,0.00056342]
[1725559428719,2.33552587,56707.0,56706.0,0.00056342]
[1725559428922,2.49512587,56707.0,56706.0,0.00056342]
[1725559429557,2.27159114,56707.0,56706.0,0.00056342]
[1725559429736,2.27359114,56707.0,56706.0,0.00156342]
[1725559430207,3.42256814,56707.0,56706.0,0.00256342]
[1725559430419,3.6480635,56707.0,56706.0,0.00256342]
[1725559430621,3.65113309,56707.0,56706.0,0.00256342]
[1725559430851,3.47557283,56707.0,56706.0,0.00256342]
[1725559431283,2.99443083,56707.0,56706.0,0.00256342]
[1725559431511,5.14735783,56707.0,56706.0,0.00256342]
[1725559431746,5.13350383,56707.0,56706.0,0.00256342]
[1725559432168,5.01184283,56707.0,56706.0,0.00256342]
[1725559432690,5.18740309,56707.0,56706.0,0.00256342]
[1725559432907,5.19814468,56707.0,56706.0,0.00256342]
[1725559433548,4.56559558,56707.0,56706.0,0.00256342]
[1725559433967,4.26448358,56707.0,56706.0,0.00256342]
[1725559435029,4.2829302,56707.0,56706.0,0.00256342]
[1725559435485,4.2829302,56707.0,56703.0,0.00164]
[1725559435486,0.178363,56701.0,56700.0,1.0]
[1725559435722,0.1546,56706.0,56690.0,0.001632]
[1725559435723,0.529183,56691.0,56690.0,0.001632]
[1725559435951,1.47749187,56691.0,56690.0,0.001632]
[1725559436155,0.552183,56691.0,56690.0,0.001632]
[1725559436613,0.904972,56691.0,56690.0,0.150532]
[1725559437754,0.001,56691.0,56690.0,0.271432]
[1725559437968,0.352762,56696.0,56693.0,0.1489]
[1725559438175,0.176385,56694.0,56693.0,0.1489]